{"text_format":"1","workbook":"xlsx","n_sheets":5,"sheets":["DISEÑO GENERADOR","DISEÑO ARCHIVO PLANO","Tablas","Bancos","Plazas"],"not_rendered":{"charts":0,"images":6,"macros":1,"external_links":0,"defined_names":1,"comments":0,"pivot_tables":0},"unopened":[],"bounds":{"document_bytes":16777216,"sheet_cells":100000,"rows_first":2000,"rows_last":500,"rows_between":2000,"halvings":0,"cell_chars":16384,"cell_head_chars":4096},"cells_cut":0,"cells_raw":0,"read":"whole","date_system":"1900"}

{"sheet":"DISEÑO GENERADOR","index":0,"n_rows":18,"n_cols":255,"rows_kept":18,"cut":false,"hidden":false,"merged":[[11,2,11,3],[10,5,10,6],[10,2,10,3],[9,2,9,3],[3,0,3,6],[5,1,5,3],[8,1,8,3],[5,5,5,6]]}
[null,null,null,null,null,null,null,null,"D"]
[]
[]
["                          GENERADOR GIRO DE CHEQUES / EFECTIVO",null,null,null,null,null,null,null,null,null,null,null,null,null,null,null,null,null,null,null,null,null,null,null,null,null,null,null,null,null,null,null,null,null,null,null,null,null,null,null,null,null,null,null,null,null,null,null,null,null,null,null,null,null,null,null,null,null,null,null,null,null,null,null,null,null,null,null,null,null,null,null,null,null,null,null,null,null,null,null,null,null,null,null,null,null,null,null,null,null,null,null,null,null,null,null,null,null,null,null,null,null,null,null,null,null,null,null,null,null,null,null,null,null,null,null,null,null,null,null,null,null,null,null,null,null,null,null,null,null,null,null,null,null,null,null,null,null,null,null,null,null,null,null,null,null,null,null,null,null,null,null,null,null,null,null,null,null,null,null,null,null,null,null,null,null,null,null,null,null,null,null,null,null,null,null,null,null,null,null,null,null,null,null,null,null,null,null,null,null,null,null,null,null,null,null,null,null,null,null,null,null,null,null,null,null,null,null,null,null,null,null,null,null,null,null,null,null,null,null,null,null,null,null,null,null,null,null,null,null,null,null,null,null,null,null,null,null,null,null,null,null,null,null,null,null,null,null,null,"Pago Nómina","Cuenta Ahorros","Cuenta Ahorros",2018,"Enero","01"]
["Versión 1.0"]
[null,"Fecha Transmisión",null,null,null,"Datos Transacción"]
[null,"AÑO","MES","DIA",null,"Transacción","Pago a Proveedores"]
[null,null,null,null,null,"Producto origen"]
[null,"Información de su Empresa",null,null,null,"Número de Producto"]
[null,"Nombre  "]
[null,"Tipo de documento",null,null,null,"Resumen Transacción"]
[null,"N° Identificación ","",null,null,"Valor Total Giros"]
[null,null,null,null,null,"Cantidad de Giros",""]
[]
[]
["Nombre del Beneficiario","N° de Documento Beneficiario","Tipo de Documento de quien retira el cheque","N° de Documento de quien retira el cheque","Valor Del Giro","Tipo Transacción","Tipo de Cruce ",null,null,"Nombre Entidad","Tipo de Cuenta","Número Cuenta"]
[]
[null,null,null,null,null,null," "]

{"sheet":"DISEÑO ARCHIVO PLANO","index":1,"n_rows":41,"n_cols":45,"rows_kept":41,"cut":false,"hidden":false,"merged":[[2,0,2,11],[17,0,17,11]]}
["Nombre campo","Posición Incial","Posición Final","Longitud","Tipo","Descripción","Combo","Valores permitidos","Requerido?","Carácter de Relleno","Alineación","Regla del Campo",null,null,null,null,null,null,null,null,null,null,null,null,null,null,null,null,null,null,null,null,null,null,null,null,null,null,null,null,null,null,null,null,{"$f":"LEN(#REF!)","v":{"$error":"#REF!"}}]
["AVVILLAS",null,null,null,"Numérico","Tipo de Archivo igual a 004"]
["Encabezado"]
["Tipo_registro",1,1,1,"Numérico","Tipo de Registro",null,"Digito 1","S",null,null,"Constante 1"]
["Número Producto Origen",{"$f":"+B4+D4","v":2},{"$f":"+B5+D5-1","v":18},17,"Numérico","Número de producto origen",null,"Dígitos de 0 a 9","S",null,null,"Valor tomado del generador ",null,null,null,null,null,null,null,null,null,null,null,null,null,null,null,null,null,null,null,null,null,null,null,null,null,null,null,null,null,null,null,null,{"$f":"LEN(#REF!)","v":{"$error":"#REF!"}}]
["Tipo Producto Origen",19,19,1,"Numérico","Tipo de producto origen",null,"0=Cuenta Corriente\n2=Cuenta de Ahorros","S"]
["Código Producto",20,21,2,"Alfanumérico","Código producto",null,"PP","S",null,null,"Siempre debe ser constante PP"]
["Fecha Efectiva",22,29,8,"Fecha","Fecha efectiva de la transacción",null,"Fecha yyyyMMdd","S",null,null,"Valor tomado del generador    "]
["Número Identificación Origen",30,44,15,"Numérico","Número de identificación del cliente",null,"Dígitos de 0 a 9","S",null,null,"Valor tomado del generador "]
["Tipo Identificación Origen",45,46,2,"Numérico","Tipo Identificiación empresa (origen)","Cédula de ciudadania\nCédula de extranjería\nNit persona jurídica","Dígitos de 1 a 3","S",null,null,"Valor tomado del generador "]
["Nombre Origen",47,62,16,"Alfanumérico","Nombre Empresa (origen)",null,"• Sólo permite letras de la a-zA-Z\n• NO se permiten:\n   ñ, Ñ, ni vocales con tildes ni digitos 0-9\n   Letras con tilde\n   Letras con diéresis  Ejemplo: ü, Ü, ÿ, \n   Letras con acento “ô”\n  No se permite caracteres especiales tales como:   °  ,  ¬ . ","S",null,null,"Valor tomado del generador "]
["Código Plaza Origen",63,66,4,"Alfanumérico","Codigo Entidad Origen",null,"0052","S",null,null,"Constante 0052"]
["Tipo Pago",67,69,3,"Alfanumérico","Tipo de Pago",null,"PPD","S",null,null,"Constante PPD"]
["Secuencia Cliente",70,75,6,"Numérico","Secuencia Cliente",null,"Digitos del cero al nueve","S",null,null,"Numero consecutivo por archivo enviado al servidor iniciando en 000001"]
["Canal",76,76,1,"Numérico","Canal",null,"Digitos del cero al nueve","S",null,null,"Constante 4"]
["Espacios",{"$f":"+B15+D15","v":77},{"$f":"+B16+D16-1","v":150},74,"Alfanumérico","Relleno de espacios",null,null,"N"]
["Id Registro",{"$f":"+B16+D16","v":151},{"$f":"+B17+D17-1","v":160},10,"Numérico","ID único del registo utilizado entre ICBS y el banco.. Dígitos de 0 a 9",null,null,"S"]
["Giros"]
["Tipo de Registro",2,1,1,"Numérico","Tipo de Registro",null,"Digito 2","S","No Aplica","No Aplica","Constante 2"]
["Código Transacción",{"$f":"+B19+D19","v":3},{"$f":"+B20+D20-1","v":4},2,"Numérico","Codigo de transacción",null,"Dígitos del cero al nueve","S","No Aplica","No Aplica","Para el caso de cheque 40\nPara el caso de Efectivo 41\nPara el caso de Anular 42\nTomado del Generador"]
["Código Banco Destino",5,8,4,"Numérico","Codigo Banco Destino",null,"Dígitos del cero al nueve","S","No Aplica","No Aplica","Constante 0052"]
["Código Plaza Destino",9,12,4,"Numérico","Código Plaza Destino",null,"Ceros","S","No Aplica","No Aplica","Constante 0001"]
["Número Identificación de quien Cobra",13,27,15,"Numérico","Número de identificación de quien cobra el cheque o efectivo",null,"Dígitos del cero al nueve","S","Espacio","Derecha","Tomado del generador "]
["Tipo Identificación de quien cobra",28,29,2,"Numérico","Tipo de identificación de quien cobra el cheque o efectivo ","Cédula de ciudadania\nCédula de extranjería\nNit persona jurídica","1=Cédula de ciudadania\n2= Cédula de extranjería\n3= Nit persona jurídica","S","Cero","Derecha","Tomado del generador"]
["Número Identificación del Beneficiario",30,46,17,"Numérico","Número de identificación Beneficiario del cheque",null,null,"S","Espacio","Izquierda","Tomado del generador"]
["Tipo Cuenta Destino",{"$f":"+B25+D25","v":47},{"$f":"+B26+D26-1","v":47},1,"Numérico","Siempre 2",null,null,"S","Cero","Derecha","Constante  2"]
["Nombre Beneficiario",48,69,22,"Alfanumérico","Nombre del Beneficiario del Cheque,  nombre que aparecerá en el Cheque a girar.",null,"• Sólo permite letras de la a-zA-Z\n• NO se permiten:\n   ñ, Ñ, ni vocales con tildes ni digitos 0-9\n   Letras con tilde\n   Letras con diéresis  Ejemplo: ü, Ü, ÿ, \n   Letras con acento “ô”\n  No se permite caracteres especiales tales como:   °  ,  ¬ . ","S","Espacio","Derecha","Si el tipo de transacción es 41 relleno de espacios.\nSi el tipo de transacción es 42 Nombre del beneficiario del cheque"]
["Indicador Mas Adendas",70,70,1,"Numérico","Indicador Mas Adendas, siempre 0",null,"Dígitos del cero al nueve","S","No Aplica","No Aplica","Constante 0"]
["Valor del Cheque/Efectivo a Girar",71,88,18,"Numérico","Valor del Cheque/ Efectivo a girar, los dos ultimos son decimales.",null,"Digitos del cero al nueve","S","Cero","Derecha","Tomado del generador \nLos dos ultimos son decimales"]
["Indicador Validación",89,89,1,"Numérico","Indicador de validación,  0 (cero) cuando el código de la transacción es igual a 43,  cuando el código de la transacción es igual a 42 debe ser 1= Restrictivo","Sin Cruce\nRestrictivo","0- Cuando se selecciona Sin Cruce\n1- Cuando se selecciona  Restrictivo\n","S","No Aplica","No Aplica"]
["Referencia ",90,105,16,"Numérico","Número de autorización de la transacción en Rta.",null,"6 Dígitos por defecto solo Ceros","N","Espacio","Derecha"]
["Filler",106,121,16,"Alfanumérico","Relleno de espacios",null,null,"N","Espacio","Derecha"]
["Filler",122,137,16,"Alfanumérico","Relleno de espacios",null,null,"N","Espacio","Derecha"]
["Filler",138,151,14,"Alfanumérico","Relleno de espacios",null,null,"N","Espacio","Derecha"]
["Id Registro",152,161,10,"Numérico","ID único del registo utilizado entre ICBS y el banco.. Dígitos de 0 a 9",null,null,"S","Cero","Derecha"]
["Control"]
["Tipo de Registro",1,1,1,"Numérico","Tipo de Registro siempre 4",null,"Digito 4","S","No Aplica","No Aplica","Constante 4"]
["Cantidad Total Registros Detalle",{"$f":"+B37+D37","v":2},{"$f":"+B38+D38-1","v":9},8,"Numérico","Número de registros detalle enviados en el archivo. Dígitos de 0 a 9",null,"Digitos del cero al nueve","S","Cero","Derecha","Tomado del generador"]
["Valor Total Giros",{"$f":"+B38+D38","v":10},{"$f":"+B39+D39-1","v":27},18,"Numérico","Valor total de giros",null,"Valor total a transferir en el archivo (16,2). Dígitos de 0 a 9\nLos dos ultimos son decimales","S","Cero","Derecha","Tomado del generador"]
["Filler",{"$f":"+B39+D39","v":28},{"$f":"+B40+D40-1","v":150},123,"Alfanumérico","Relleno de espacios",null,null,"N","Espacio","Derecha"]
["Id Registro",{"$f":"+B40+D40","v":151},{"$f":"+B41+D41-1","v":160},10,"Numérico","ID único del registo utilizado entre ICBS y el banco.. Dígitos de 0 a 9",null,null,null,"Cero","Derecha"]

{"sheet":"Tablas","index":2,"n_rows":104,"n_cols":8,"rows_kept":104,"cut":false,"hidden":false,"merged":[[60,1,60,2],[65,1,65,2],[31,1,31,2],[21,1,21,2],[3,3,4,3],[6,1,6,2]]}
[]
[null,"TIPO DE PRODUCTO ORIGEN"]
[null,"CÓDIGO","TIPO DE PRODUCTO"]
[null,0,"Cuenta Corriente"]
[null,1,"Cuenta de Ahorros"]
[]
[null,"CÓDIGO DE PRODUCTO"]
[null,"CÓDIGO "]
[null,"PN","PAGO NOMINA"]
[null,"PP","PAGO PROVEEDORES"]
[null,"RT","RECAUDO TARJETA"]
[null,"PC","PAGO COMISION"]
[null,"PH","PAGO HONORARIOS"]
[null,"PO","OTROS PAGOS"]
[null,"RC","RECAUDO CARTERA"]
[null,"RK","RECAUDO CONVENIO"]
[null,"RO","OTROS RECAUDOS"]
[null,"RS","COBRO SERVIC IOS"]
[null,"TC","TRANSF. CONCENTRACION"]
[null,"TD ","TRANSF. DISPERSION"]
[]
[null,"TIPO DE IDENTIFICACIÓN"]
[null,"CÓDIGO","TIPO DE IDENTIFICACIÓN"]
[null,1,"Nit Persona Jurídica"]
[null,2,"Cedula de extranjeria"]
[null,3,"Nit Persona Jurídica"]
[null,5,"Registro Civil"]
[null,6,"Nit de Extranjería"]
[null,10,"Pasaporte Internacional"]
[]
[]
[null,"CÓDIGO DE TRANSACCIÓN"]
[null,"CÓDIGO","TRANSACCIÓN"]
[null,21,"DEV.CREDITO A CC"]
[null,22,"CREDITO  A CC"]
[null,23,"PRENOTIF CREDITO A CC"]
[null,26,"DEV.DEBITO A CC"]
[null,27,"DEBITO A CC"]
[null,28,"PRENOTIF DEBITO A CC"]
[null,31,"DEV.CREDITO A AH"]
[null,32,"CREDITO  A AH"]
[null,33,"PRENOTIF CREDITO A AH"]
[null,36,"DEV.DEBITO A AH"]
[null,37,"DEBITO A AH"]
[null,38,"PRENOTIF DEBITO A AH"]
[null,50,"PRUEBA"]
[null,62,"REVERSION CREDITO A CC"]
[null,63,"REVERSION CREDITO A AH"]
[null,72,"REVERSION DEBITO A CC"]
[null,73,"REVERSION DEBITO A AH"]
[null,82,"DC CREDITO A CC"]
[null,83,"DC CREDITO A AH"]
[null,88,"COBRO COMISION A CC O AH"]
[null,92,"DC DEBITO A CC"]
[null,93,"DC DEBITO A AH","antes",null,"GIRO_CHEQUE","EFECTIVO","ANULAR"]
[null,42,"GIRO CHEQUE",40,null,"Restrictivo"," "," "]
[null,43,"EFECTIVO",41,null,null,"Sin Cruce"]
[null,44,"ANULAR",42]
[]
[]
[null,"CÓDIGO DE CRUCE DEL CHEQUE"]
[null,"CÓDIGO","TIPO DE CRUCE"]
[null,0,"Sin Cruce"]
[null,1,"Restrictivo"]
[]
[null,"TIPO DE ARCHIVO"]
[null,"CÓDIGO","TIPO ARCHIVO"]
[null,4,"Pago a Proveedores"]
[]
[]
[]
[]
[null,"Mes ","Día","Año "]
[null,"Enero ","01",2003]
[null,"Febrero","02",2004]
[null,"Marzo","03",2005]
[null,"Abril","04",2006]
[null,"Mayo","05",2007]
[null,"Junio","06",2008]
[null,"Julio","07",2009]
[null,"Agosto","08",2010]
[null,"Septiembre","09",2011]
[null,"Octubre",10,2012]
[null,"Noviembre",11,2013]
[null,"Diciembre",12,2014]
[null,null,13,2015]
[null,null,14,2016]
[null,null,15,2017]
[null,null,16,2018]
[null,null,17,2019]
[null,null,18,2020]
[null,null,19,2021]
[null,null,20,2022]
[null,null,21,2023]
[null,null,22,2024]
[null,null,23,2025]
[null,null,24,2026]
[null,null,25,2027]
[null,null,26,2028]
[null,null,27,2029]
[null,null,28,2030]
[null,null,29]
[null,null,30]
[null,null,31]

{"sheet":"Bancos","index":3,"n_rows":34,"n_cols":3,"rows_kept":34,"cut":false,"hidden":false,"merged":[[1,1,1,2]]}
[]
[null,"BANCOS"]
[null,"CÓDIGO","NOMBRE BANCO O ENTIDAD FINANCIERA"]
[null,"0001","Banco de Bogotá                     "]
[null,"0009","Banco Citibank                     "]
[null,"0014","Banco Corpbanca                     "]
[null,"0032","Banco Caja Social                     "]
[null,"0023","Banco de Occidente                     "]
[null,"0051","Banco Davivienda                     "]
[null,"0062","Banco Falabella S.A.                     "]
[null,"0002","Banco Popular                     "]
[null,"0058","Banco ProCredit Colombia                     "]
[null,"0012","Banco GNB Sudameris                     "]
[null,"0013","Banco BBVA"]
[null,"0006","Banco Itaú                     "]
[null,"0042","BNP Paribas S.A.                     "]
[null,"0060","Banco Pichincha                     "]
[null,"0065","Bco. Santander de Neg                     "]
[null,"0066","Banco Cooperativo Coopcentral                     "]
[null,"0067","Banco Compartir S.A                     "]
[null,"0121","Compañía de Financiamiento Juriscoop                     "]
[null,"0370","Coltefinanciera S.A.                     "]
[null,"0292","Confiar S.A.                     "]
[null,"00283","Cooperativa Financiera de Antioquia                     "]
[null,"0007","Bancolombia                     "]
[null,"0053","Banco W S.A.                     "]
[null,"0061","Bancoomeva                     "]
[null,"0064","Banco Multibank S.A.                     "]
[null,"0289","Cotrafa Cooperativa Financiera                     "]
[null,"0019","Banco Colpatria                     "]
[null,"0063","Banco Finandina S.A.                     "]
[null,"1507","Banco NEQUI                     "]
[null,"0052","Banco AV Villas"]
[null,"0040","BANCO Agrario"]

{"sheet":"Plazas","index":4,"n_rows":843,"n_cols":3,"rows_kept":843,"cut":false,"hidden":false,"merged":[[1,1,1,2]]}
[]
[null,"PLAZAS"]
[null,"CÓDIGO DANE","CIUDAD"]
[null,148,"ABEJORRAL"]
[null,577,"ABREGO"]
[null,490,"ACACIAS"]
[null,426,"ACANDI"]
[null,441,"ACEVEDO"]
[null,334,"ACHI"]
[null,442,"AGRADO"]
[null,405,"AGUA DE DIOS"]
[null,42,"AGUACHICA"]
[null,264,"AGUADAS"]
[null,300,"AGUAZUL"]
[null,443,"AIPE"]
[null,287,"ALBANIA"]
[null,779,"ALCALA"]
[null,444,"ALGECIRAS"]
[null,311,"ALMAGUER"]
[null,679,"ALPUJARRA"]
[null,96,"ALTAMIRA"]
[null,445,"ALTAMIRA"]
[null,680,"ALVARADO"]
[null,97,"AMAGA"]
[null,149,"AMALFI"]
[null,681,"AMBALEMA"]
[null,406,"ANAPOIMA"]
[null,51,"ANDALUCIA"]
[null,98,"ANDES"]
[null,795,"ANGELOPOLIS"]
[null,99,"ANGOSTURA"]
[null,407,"ANOLAIMA"]
[null,150,"ANORI"]
[null,265,"ANSERMA"]
[null,584,"ANSERMANUEVO"]
[null,100,"ANZA"]
[null,682,"ANZOATEGUI"]
[null,39,"APARTADO"]
[null,594,"APIA"]
[null,421,"APULO"]
[null,761,"AQUITANIA"]
[null,803,"ARABIA"]
[null,478,"ARACATACA"]
[null,266,"ARANZAZU"]
[null,607,"ARATOCA"]
[null,37,"ARAUCA"]
[null,267,"ARAUCA"]
[null,750,"ARAUQUITA"]
[null,408,"ARBELAEZ"]
[null,798,"ARBOLEDA"]
[null,551,"ARBOLEDAS"]
[null,101,"ARBOLETES"]
[null,216,"ARCABUCO"]
[null,151,"ARGELIA"]
[null,780,"ARGELIA"]
[null,312,"ARGELIA ( CAUCA )"]
[null,203,"ARJONA"]
[null,11,"ARMENIA"]
[null,102,"ARMENIA"]
[null,347,"ASTREA"]
[null,683,"ATACO"]
[null,366,"AYAPEL"]
[null,828,"BAHIA SOLANO"]
[null,595,"BALBOA"]
[null,313,"BALBOA"]
[null,192,"BARANOA"]
[null,446,"BARAYA"]
[null,800,"BARBACOAS"]
[null,152,"BARBOSA"]
[null,608,"BARBOSA"]
[null,582,"BARCELONA"]
[null,609,"BARICHARA"]
[null,21,"BARRANCABERMEJA"]
[null,436,"BARRANCAS"]
[null,4,"BARRANQUILLA"]
[null,348,"BECERRIL"]
[null,268,"BELALCAZAR"]
[null,520,"BELEN"]
[null,217,"BELEN"]
[null,288,"BELEN DE LOS ANDAQUIES"]
[null,596,"BELEN DE UMBRIA"]
[null,818,"BELENCITO"]
[null,153,"BELLO"]
[null,521,"BERRUECOS"]
[null,103,"BETANIA"]
[null,610,"BETULIA"]
[null,104,"BETULIA"]
[null,218,"BOAVITA"]
[null,522,"BOCAS DE SATINGA"]
[null,552,"BOCHALEMA"]
[null,1,"BOGOTA"]
[null,427,"BOJAYA BELLAVISTA"]
[null,611,"BOLIVAR"]
[null,724,"BOLIVAR"]
[null,105,"BOLIVAR"]
[null,314,"BOLIVAR"]
[null,790,"BOLIVIA"]
[null,349,"BOSCONIA"]
[null,57,"BRICEÑO"]
[null,5,"BUCARAMANGA"]
[null,26,"BUENAVENTURA"]
[null,367,"BUENAVISTA"]
[null,583,"BUENAVISTA"]
[null,660,"BUENAVISTA"]
[null,315,"BUENOS AIRES"]
[null,523,"BUESACO"]
[null,17,"BUGA"]
[null,832,"BUGALAGRANDE"]
[null,409,"CABRERA"]
[null,491,"CABUYARO"]
[null,410,"CACHIPAY"]
[null,554,"CACHIRA"]
[null,553,"CACOTA"]
[null,106,"CAICEDO"]
[null,725,"CAICEDONIA"]
[null,661,"CAIMITO"]
[null,684,"CAJAMARCA"]
[null,316,"CAJIBIO"]
[null,821,"CAJICA"]
[null,204,"CALAMAR"]
[null,35,"CALARCA"]
[null,107,"CALDAS"]
[null,317,"CALDONO"]
[null,3,"CALI"]
[null,318,"CALOTO"]
[null,108,"CAMPAMENTO"]
[null,193,"CAMPO DE LA CRUZ"]
[null,447,"CAMPOALEGRE"]
[null,219,"CAMPOHERMOSO"]
[null,368,"CANALETE"]
[null,109,"CANASGORDAS"]
[null,726,"CANDELARIA"]
[null,194,"CANDELARIA"]
[null,391,"CAPARRAPI"]
[null,612,"CAPITANEJO"]
[null,58,"CAQUEZA"]
[null,154,"CARACOLI"]
[null,110,"CARAMANTA"]
[null,613,"CARCASI"]
[null,685,"CARMEN DE APICALA"]
[null,837,"CARMEN DE ATRATO"]
[null,801,"CARMEN DE CARUPA"]
[null,155,"CARMEN DE VIBORAL"]
[null,839,"CARMEN DEL CHUCURI"]
[null,156,"CAROLINA"]
[null,7,"CARTAGENA"]
[null,289,"CARTAGENA DEL CHAIRA"]
[null,19,"CARTAGO"]
[null,686,"CASABIANCA"]
[null,492,"CASTILLA LA NUEVA"]
[null,157,"CAUCASIA"]
[null,369,"CERETE"]
[null,614,"CERRITO"]
[null,479,"CERRO DE SAN ANTONIO"]
[null,411,"CHAGUANI"]
[null,687,"CHAPARRAL"]
[null,620,"CHARALA"]
[null,62,"CHIA"]
[null,774,"CHICORAL"]
[null,112,"CHIGORODO"]
[null,371,"CHIMA"]
[null,621,"CHIMA"]
[null,350,"CHIMICHAGUA"]
[null,556,"CHINACOTA"]
[null,221,"CHINAVITA"]
[null,55,"CHINCHINA"]
[null,372,"CHINU"]
[null,815,"CHIPAQUE"]
[null,52,"CHIQUINQUIRA"]
[null,351,"CHIRIGUANA"]
[null,222,"CHISCAS"]
[null,223,"CHITA"]
[null,557,"CHITAGA"]
[null,224,"CHITARAQUE"]
[null,481,"CHIVOLO"]
[null,834,"CHIVOR"]
[null,60,"CHOACHI"]
[null,61,"CHOCONTA"]
[null,47,"CIENAGA"]
[null,370,"CIENAGA DE ORO"]
[null,615,"CIMITARRA"]
[null,585,"CIRCASIA"]
[null,158,"CISNEROS"]
[null,428,"CIUDAD MUTIS BAHIA SOLANO"]
[null,159,"COCORNA"]
[null,791,"CODAZZI"]
[null,688,"COELLO"]
[null,448,"COLOMBIA"]
[null,662,"COLOSO"]
[null,616,"CONCEPCION"]
[null,111,"CONCORDIA"]
[null,429,"CONDOTO"]
[null,805,"CONSACA"]
[null,524,"CONTADERO"]
[null,617,"CONTRATACION"]
[null,581,"CONVENCION"]
[null,160,"COPACABANA"]
[null,586,"CORDOBA"]
[null,319,"CORINTO"]
[null,618,"COROMORO"]
[null,663,"COROZAL"]
[null,59,"COTA"]
[null,220,"COVARACHIA"]
[null,689,"COYAIMA"]
[null,751,"CRAVO NORTE"]
[null,833,"CUBARA"]
[null,493,"CUBARRAL"]
[null,12,"CUCUTA"]
[null,555,"CUCUTILLA"]
[null,404,"CUMACA"]
[null,494,"CUMARAL"]
[null,525,"CUMBAL"]
[null,526,"CUMBITARA"]
[null,690,"CUNDAY"]
[null,619,"CURITI"]
[null,352,"CURUMANI"]
[null,727,"DAGUA"]
[null,728,"DARIEN"]
[null,113,"DEBEIBA"]
[null,691,"DOLORES"]
[null,114,"DON MATIAS"]
[null,597,"DOSQUEBRADAS"]
[null,30,"DUITAMA"]
[null,558,"DURANIA"]
[null,115,"EBEJICO"]
[null,782,"EL AGUILA"]
[null,161,"EL BAGRE"]
[null,482,"EL BANCO"]
[null,93,"EL BORDO"]
[null,729,"EL CAIRO"]
[null,495,"EL CALVARIO"]
[null,580,"EL CARMEN"]
[null,205,"EL CARMEN DE BOLIVAR"]
[null,496,"EL CASTILLO"]
[null,789,"EL CENTRO"]
[null,730,"EL CERRITO"]
[null,527,"EL CHARCO"]
[null,225,"EL COCUY"]
[null,412,"EL COLEGIO"]
[null,353,"EL COPEY"]
[null,483,"EL DIFICIL"]
[null,290,"EL DONCELLO"]
[null,731,"EL DOVIO"]
[null,226,"EL ESPINO"]
[null,291,"EL PAUJIL"]
[null,162,"EL PENOL"]
[null,163,"EL RETIRO"]
[null,528,"EL ROSARIO"]
[null,529,"EL TAMBO"]
[null,320,"EL TAMBO"]
[null,559,"EL ZULIA"]
[null,449,"ELIAS"]
[null,116,"ENVIGADO"]
[null,36,"ESPINAL"]
[null,66,"FACATATIVA"]
[null,692,"FALAN"]
[null,270,"FILADELFIA"]
[null,587,"FILANDIA"]
[null,809,"FLANDES"]
[null,32,"FLORENCIA"]
[null,271,"FLORENCIA"]
[null,622,"FLORIAN"]
[null,732,"FLORIDA"]
[null,623,"FLORIDABLANCA"]
[null,67,"FOMEQUE"]
[null,437,"FONSECA"]
[null,797,"FORTUL"]
[null,413,"FOSCA"]
[null,117,"FREDONIA"]
[null,693,"FRESNO"]
[null,118,"FRONTINO"]
[null,510,"FUENTE DE ORO"]
[null,38,"FUNDACION"]
[null,530,"FUNES"]
[null,68,"FUNZA"]
[null,41,"FUSAGASUGA"]
[null,392,"GACHALA"]
[null,227,"GACHANTIVA"]
[null,63,"GACHETA"]
[null,694,"GAITANIA"]
[null,664,"GALERAS"]
[null,484,"GAMARRA"]
[null,354,"GAMARRA"]
[null,624,"GAMBITA"]
[null,762,"GAMEZA"]
[null,228,"GARAGOA"]
[null,450,"GARZON"]
[null,588,"GENOVA"]
[null,560,"GIBRALTAR"]
[null,451,"GIGANTE"]
[null,733,"GINEBRA"]
[null,24,"GIRARDOT"]
[null,164,"GIRARDOTA"]
[null,625,"GIRON"]
[null,165,"GOMEZ PLATA"]
[null,561,"GRAMALOTE"]
[null,166,"GRANADA"]
[null,90,"GRANADA"]
[null,627,"GUACA"]
[null,294,"GUACAMAYAS"]
[null,734,"GUACARI"]
[null,822,"GUACHETA"]
[null,531,"GUACHUCAL"]
[null,167,"GUADALUPE"]
[null,628,"GUADALUPE"]
[null,452,"GUADALUPE"]
[null,414,"GUADUAS"]
[null,532,"GUAITARILLA"]
[null,485,"GUAMAL"]
[null,497,"GUAMAL"]
[null,776,"GUAMO"]
[null,321,"GUAPI"]
[null,665,"GUARANDA"]
[null,168,"GUARNE"]
[null,64,"GUASCA"]
[null,65,"GUATAVITA"]
[null,229,"GUATEQUE"]
[null,598,"GUATICA"]
[null,626,"GUAVATA"]
[null,787,"GUAYABAL"]
[null,415,"GUAYABAL DE SIQUIMA"]
[null,230,"GUAYATA"]
[null,629,"GUEPSA"]
[null,231,"GUICAN"]
[null,416,"GUTIERREZ"]
[null,562,"HACARI"]
[null,301,"HATO COROZAL"]
[null,119,"HELICONIA"]
[null,563,"HERRAN"]
[null,695,"HERRERA"]
[null,696,"HERVEO"]
[null,453,"HOBO"]
[null,29,"HONDA"]
[null,10,"IBAGUE"]
[null,697,"ICONONZO"]
[null,533,"ILES"]
[null,322,"INZA"]
[null,45,"IPIALES"]
[null,454,"IQUIRA"]
[null,545,"ISCUANDE"]
[null,455,"ISNOS"]
[null,120,"ITAGUI"]
[null,430,"ITSMINA"]
[null,121,"ITUANGO"]
[null,323,"JAMBALO"]
[null,735,"JAMUNDI"]
[null,122,"JARDIN"]
[null,835,"JENESANO"]
[null,123,"JERICO"]
[null,630,"JESUS MARIA"]
[null,195,"JUAN DE ACOSTA"]
[null,393,"JUNIN"]
[null,698,"JUNIN TOLIMA"]
[null,431,"JURADO"]
[null,456,"LA ARGENTINA"]
[null,631,"LA BELLEZA"]
[null,69,"LA CALERA"]
[null,169,"LA CEJA"]
[null,599,"LA CELIA"]
[null,534,"LA CRUZ"]
[null,736,"LA CUMBRE"]
[null,31,"LA DORADA"]
[null,124,"LA ESTRELLA"]
[null,565,"LA GABARRA"]
[null,356,"LA GLORIA"]
[null,755,"LA HORMIGA"]
[null,355,"LA JAGUA DE IBIRICO"]
[null,498,"LA MACARENA"]
[null,9,"LA MERCED"]
[null,70,"LA MESA"]
[null,293,"LA MONTANITA"]
[null,394,"LA PALMA"]
[null,633,"LA PAZ"]
[null,357,"LA PAZ ROBLES"]
[null,395,"LA PEÑA"]
[null,457,"LA PLATA"]
[null,511,"LA PRIMAVERA VICHADA"]
[null,324,"LA SIERRA"]
[null,589,"LA TEBAIDA"]
[null,170,"LA UNION"]
[null,737,"LA UNION"]
[null,535,"LA UNION"]
[null,666,"LA UNION"]
[null,232,"LA UVITA"]
[null,71,"LA VEGA"]
[null,325,"LA VEGA"]
[null,566,"LA VEGA"]
[null,781,"LA VICTORIA"]
[null,600,"LA VIRGINIA"]
[null,564,"LABATECA"]
[null,763,"LABRANZAGRANDE"]
[null,632,"LANDAZURI"]
[null,634,"LEBRIJA"]
[null,499,"LEJANIAS"]
[null,802,"LENGUAZAQUE"]
[null,699,"LERIDA"]
[null,49,"LETICIA "]
[null,700,"LIBANO"]
[null,125,"LIBORINA"]
[null,536,"LINARES"]
[null,326,"LOPEZ"]
[null,373,"LORICA"]
[null,374,"LOS CORDOBAS"]
[null,667,"LOS PALMITOS"]
[null,635,"LOS SANTOS"]
[null,567,"LOURDES"]
[null,196,"LURUACO"]
[null,233,"MACANAL"]
[null,171,"MACEO"]
[null,396,"MACHETA"]
[null,72,"MADRID"]
[null,206,"MAGANGUE"]
[null,829,"MAICAO"]
[null,668,"MAJAGUAL"]
[null,636,"MALAGA"]
[null,197,"MANATI"]
[null,365,"MANAURE"]
[null,438,"MANAURE"]
[null,302,"MANI"]
[null,6,"MANIZALES"]
[null,397,"MANTA"]
[null,772,"MANZANARES"]
[null,207,"MARIALABAJA"]
[null,172,"MARINILLA"]
[null,701,"MARIQUITA"]
[null,273,"MARMATO"]
[null,771,"MARQUETANIA"]
[null,601,"MARSELLA"]
[null,274,"MARULANDA"]
[null,637,"MATANZA"]
[null,2,"MEDELLIN"]
[null,500,"MEDELLIN DEL ARIARI"]
[null,512,"MEDINA"]
[null,778,"MELGAR"]
[null,327,"MERCADERES"]
[null,838,"MESETAS"]
[null,295,"MILAN"]
[null,234,"MIRAFLORES"]
[null,513,"MIRAFLORES "]
[null,328,"MIRANDA"]
[null,602,"MISTRATO"]
[null,514,"MITU "]
[null,806,"MOCOA"]
[null,638,"MOGOTES"]
[null,804,"MOLAGAVITA"]
[null,375,"MOMIL"]
[null,208,"MOMPOS"]
[null,235,"MONIQUIRA"]
[null,377,"MONITOS"]
[null,126,"MONTEBELLO"]
[null,275,"MONTEBONITO"]
[null,376,"MONTELIBANO"]
[null,590,"MONTENEGRO"]
[null,25,"MONTERIA"]
[null,303,"MONTERREY"]
[null,639,"MORALES"]
[null,329,"MORALES"]
[null,73,"MOSQUERA"]
[null,702,"MURILLO"]
[null,127,"MUTATA"]
[null,568,"MUTISCUA"]
[null,807,"MUZO"]
[null,738,"NARANJAL"]
[null,173,"NARINO"]
[null,458,"NATAGA"]
[null,703,"NATAGAIMA"]
[null,174,"NECHI"]
[null,128,"NECOCLI"]
[null,276,"NEIRA"]
[null,13,"NEIVA"]
[null,823,"NEMOCON"]
[null,398,"NOCAIMA"]
[null,773,"NORCASIA"]
[null,796,"NUEVO COLON"]
[null,304,"NUNCHIA"]
[null,812,"OBANDO"]
[null,54,"OCANA"]
[null,640,"OIBA"]
[null,641,"ONZAGA"]
[null,459,"OPORAPA"]
[null,756,"ORITO"]
[null,292,"OROCUE"]
[null,704,"ORTEGA"]
[null,236,"OTANCHE"]
[null,669,"OVEJAS"]
[null,74,"PACO"]
[null,277,"PACORA"]
[null,330,"PADILLA"]
[null,237,"PAEZ"]
[null,331,"PAEZ BELALCAZAR"]
[null,460,"PAICOL"]
[null,358,"PAILITAS"]
[null,399,"PAIME"]
[null,238,"PAIPA"]
[null,332,"PAISPAMBA SOTARA"]
[null,764,"PAJARITO"]
[null,461,"PALERMO "]
[null,278,"PALESTINA"]
[null,462,"PALESTINA"]
[null,811,"PALMIRA"]
[null,705,"PALOCABILDO"]
[null,569,"PAMPLONA"]
[null,53,"PANDI"]
[null,417,"PASCA"]
[null,23,"PASTO"]
[null,769,"PAUNA"]
[null,305,"PAZ DE ARIPORO"]
[null,819,"PAZ DEL RIO"]
[null,359,"PELAYA"]
[null,279,"PENSILVANIA"]
[null,272,"PEQUE"]
[null,8,"PEREIRA"]
[null,765,"PESCA"]
[null,642,"PIEDECUESTA"]
[null,706,"PIEDRAS"]
[null,333,"PIENDAMO"]
[null,591,"PIJAO"]
[null,209,"PINILLOS"]
[null,463,"PITAL"]
[null,464,"PITALITO"]
[null,486,"PIVIJAY"]
[null,432,"PIZARRO"]
[null,707,"PLANADAS"]
[null,378,"PLANETARRICA"]
[null,487,"PLATO"]
[null,708,"PLAYARRICA"]
[null,20,"POPAYAN"]
[null,799,"PORE"]
[null,739,"PRADERA"]
[null,709,"PRADO"]
[null,830,"PROVIDENCIA (ISLA)"]
[null,360,"PUEBLO BELLO"]
[null,379,"PUEBLO NUEVO"]
[null,269,"PUEBLO RICO"]
[null,603,"PUEBLORRICO"]
[null,643,"PUENTE NACIONAL"]
[null,537,"PUERRES"]
[null,91,"PUERTO  BOYACA"]
[null,757,"PUERTO ASIS"]
[null,175,"PUERTO BERRIO"]
[null,515,"PUERTO CARRENO VICHADA"]
[null,198,"PUERTO COLOMBIA"]
[null,380,"PUERTO ESCONDIDO"]
[null,501,"PUERTO GAITAN"]
[null,516,"PUERTO INIRIDA "]
[null,758,"PUERTO LEGUIZAMO"]
[null,381,"PUERTO LIBERTADOR"]
[null,508,"PUERTO LLERAS"]
[null,502,"PUERTO LOPEZ"]
[null,794,"PUERTO NARE"]
[null,296,"PUERTO RICO"]
[null,752,"PUERTO RONDON"]
[null,418,"PUERTO SALGAR"]
[null,335,"PUERTO TEJADA"]
[null,176,"PUERTO TRIUNFO"]
[null,644,"PUERTO WILCHES"]
[null,538,"PUPIALES"]
[null,336,"PURACE"]
[null,710,"PURIFICACION"]
[null,382,"PURISIMA"]
[null,419,"QUETAME"]
[null,48,"QUIBDO"]
[null,592,"QUIMBAYA"]
[null,604,"QUINCHIA"]
[null,808,"QUIPAMA"]
[null,420,"QUIPILE"]
[null,570,"RAGONVALIA"]
[null,239,"RAMIRIQUI"]
[null,177,"REMEDIOS"]
[null,199,"REPELON"]
[null,503,"RESTREPO"]
[null,740,"RESTREPO"]
[null,539,"RICAURTE"]
[null,361,"RIO DE ORO"]
[null,711,"RIOBLANCO"]
[null,741,"RIOFRIO"]
[null,43,"RIOHACHA"]
[null,645,"RIONEGRO"]
[null,178,"RIONEGRO"]
[null,280,"RIOSUCIO"]
[null,433,"RIOSUCIO"]
[null,281,"RISARALDA"]
[null,465,"RIVERA"]
[null,742,"ROLDANILLO"]
[null,712,"RONCESVALLES"]
[null,337,"ROSAS"]
[null,713,"ROVIRA"]
[null,646,"SABANA DE TORRES"]
[null,129,"SABANALARGA"]
[null,200,"SABANALARGA"]
[null,306,"SABANALARGA"]
[null,130,"SABANETA"]
[null,768,"SABOYA"]
[null,383,"SAHAGUN"]
[null,466,"SALADOBLANCO"]
[null,282,"SALAMINA"]
[null,571,"SALAZAR"]
[null,777,"SALDANA"]
[null,593,"SALENTO"]
[null,131,"SALGAR"]
[null,743,"SALONICA"]
[null,240,"SAMACA"]
[null,770,"SAMANA"]
[null,540,"SAMANIEGO"]
[null,670,"SAMPUES"]
[null,467,"SAN AGUSTIN"]
[null,362,"SAN ALBERTO"]
[null,647,"SAN ANDRES"]
[null,40,"SAN ANDRES ( ISLA )"]
[null,132,"SAN ANDRES (ANTIOQUIA)"]
[null,384,"SAN ANDRES SOTAVENTO"]
[null,385,"SAN ANTERO"]
[null,714,"SAN ANTONIO"]
[null,671,"SAN BENITO ABAD"]
[null,422,"SAN BERNARDO"]
[null,386,"SAN BERNARDO DEL VIENTO"]
[null,578,"SAN CALIXTO"]
[null,387,"SAN CARLOS"]
[null,179,"SAN CARLOS"]
[null,504,"SAN CARLOS DE GUAROA"]
[null,783,"SAN CAYETANO"]
[null,133,"SAN CRISTOBAL"]
[null,363,"SAN DIEGO"]
[null,210,"SAN ESTANISLAO"]
[null,283,"SAN FELIX"]
[null,75,"SAN FRANCISCO"]
[null,34,"SAN GIL"]
[null,211,"SAN JACINTO"]
[null,134,"SAN JERONIMO"]
[null,284,"SAN JOSE"]
[null,542,"SAN JOSE DE ALBAN"]
[null,135,"SAN JOSE DE LA MONTANA"]
[null,241,"SAN JOSE DE PARE"]
[null,648,"SAN JOSE DE RISARALDA"]
[null,517,"SAN JOSE DEL GUAVIARE"]
[null,744,"SAN JOSE DEL PALMAR"]
[null,509,"SAN JUAN DE ARAMA"]
[null,423,"SAN JUAN DE RIOSECO"]
[null,788,"SAN JUAN DEL CESAR"]
[null,212,"SAN JUAN NEPOMUCENO"]
[null,505,"SAN JUANITO"]
[null,543,"SAN LORENZO"]
[null,715,"SAN LUIS"]
[null,180,"SAN LUIS"]
[null,242,"SAN LUIS DE GACENO"]
[null,307,"SAN LUIS DE PALENQUE"]
[null,672,"SAN MARCOS"]
[null,506,"SAN MARTIN"]
[null,793,"SAN MARTIN DE LOBA"]
[null,244,"SAN MATEO"]
[null,673,"SAN ONOFRE"]
[null,544,"SAN PABLO"]
[null,650,"SAN PABLO"]
[null,136,"SAN PEDRO"]
[null,674,"SAN PEDRO"]
[null,137,"SAN PEDRO DE URABA"]
[null,388,"SAN PELAYO"]
[null,181,"SAN RAFAEL"]
[null,182,"SAN ROQUE"]
[null,488,"SAN SEBASTIAN"]
[null,338,"SAN SEBASTIAN"]
[null,183,"SAN VICENTE"]
[null,649,"SAN VICENTE  DE CHUCURI"]
[null,297,"SAN VICENTE DEL CAGUAN"]
[null,541,"SANDONA"]
[null,138,"SANTA BARBARA ISCUANDE"]
[null,213,"SANTA CATALINA"]
[null,716,"SANTA ISABEL"]
[null,468,"SANTA MARIA"]
[null,14,"SANTA MARTA"]
[null,605,"SANTA ROSA DE CABAL"]
[null,785,"SANTA ROSA DE OSOS"]
[null,245,"SANTA ROSA DE VITERBO"]
[null,214,"SANTA ROSA DEL SUR"]
[null,518,"SANTA ROSALIA "]
[null,246,"SANTA SOFIA"]
[null,717,"SANTA TERESA"]
[null,784,"SANTAFE DE ANTIOQUIA"]
[null,243,"SANTANA"]
[null,489,"SANTANA"]
[null,339,"SANTANDER"]
[null,718,"SANTIAGO PEREZ"]
[null,184,"SANTO DOMINGO"]
[null,201,"SANTO TOMAS"]
[null,606,"SANTUARIO"]
[null,185,"SANTUARIO"]
[null,753,"SARAVENA"]
[null,572,"SARDINATA"]
[null,76,"SASAIMA"]
[null,247,"SATIVANORTE"]
[null,186,"SEGOVIA"]
[null,824,"SESQUILE"]
[null,33,"SEVILLA"]
[null,825,"SIBATE"]
[null,340,"SIBERIA"]
[null,759,"SIBUNDOY"]
[null,573,"SILOS"]
[null,77,"SILVANIA"]
[null,341,"SILVIA"]
[null,651,"SIMACOTA"]
[null,78,"SIMIJACA"]
[null,652,"SIMITI"]
[null,675,"SINCE"]
[null,27,"SINCELEJO"]
[null,79,"SOACHA"]
[null,248,"SOATA"]
[null,766,"SOCHA"]
[null,44,"SOCORRO"]
[null,249,"SOCOTA"]
[null,28,"SOGAMOSO"]
[null,298,"SOLANO"]
[null,202,"SOLEDAD"]
[null,250,"SOMONDOCO"]
[null,187,"SONSON"]
[null,139,"SOPETRAN"]
[null,80,"SOPO"]
[null,251,"SOTAQUIRA"]
[null,546,"SOTOMAYOR"]
[null,653,"SUAITA"]
[null,342,"SUAREZ"]
[null,775,"SUAREZ"]
[null,469,"SUAZA"]
[null,81,"SUBACHOQUE"]
[null,654,"SUCRE"]
[null,676,"SUCRE"]
[null,82,"SUESCA"]
[null,655,"SULATA"]
[null,400,"SUPATA"]
[null,285,"SUPIA"]
[null,831,"SURATA"]
[null,836,"SUSA"]
[null,252,"SUSACON"]
[null,767,"SUTAMARCHAN"]
[null,827,"TABIO"]
[null,434,"TADO"]
[null,364,"TAMALAMEQUE"]
[null,308,"TAMARA"]
[null,754,"TAME"]
[null,140,"TAMESIS"]
[null,547,"TAMINANGO"]
[null,188,"TARAZA"]
[null,470,"TARQUI"]
[null,141,"TARSO"]
[null,309,"TAURAMENA"]
[null,471,"TELLO"]
[null,83,"TENJO"]
[null,253,"TENZA"]
[null,579,"TEORAMA"]
[null,472,"TERUEL"]
[null,473,"TESALIA"]
[null,254,"TIBANA"]
[null,574,"TIBU"]
[null,389,"TIERRALTA"]
[null,474,"TIMANA"]
[null,343,"TIMBIO"]
[null,344,"TIMBIQUI"]
[null,255,"TIPACOQUE"]
[null,142,"TITIRIBI"]
[null,256,"TOCA"]
[null,424,"TOCAIMA"]
[null,826,"TOCANCIPA"]
[null,257,"TOGUI"]
[null,143,"TOLEDO"]
[null,575,"TOLEDO"]
[null,810,"TOLEMAIDA"]
[null,677,"TOLU"]
[null,678,"TOLUVIEJO"]
[null,656,"TONA"]
[null,401,"TOPAIPI"]
[null,345,"TORIBIO"]
[null,745,"TORO"]
[null,346,"TOTORO"]
[null,719,"TRES ESQUINAS"]
[null,310,"TRINIDAD"]
[null,746,"TRUJILLO"]
[null,16,"TULUA"]
[null,548,"TUMACO"]
[null,18,"TUNJA"]
[null,549,"TUQUERRES"]
[null,46,"TURBACO"]
[null,144,"TURBO"]
[null,258,"TURMEQUE"]
[null,259,"TUTA"]
[null,402,"UBALA"]
[null,816,"UBAQUE"]
[null,85,"UBATE"]
[null,813,"ULLOA"]
[null,260,"UMBITA"]
[null,84,"UNE"]
[null,435,"UNGUIA"]
[null,86,"UNIABASTOS"]
[null,145,"URRAO"]
[null,439,"URUMITA"]
[null,87,"USME"]
[null,425,"UTICA"]
[null,146,"VALDIVIA"]
[null,390,"VALENCIA"]
[null,720,"VALLE DE SAN JUAN"]
[null,22,"VALLEDUPAR"]
[null,299,"VALPARAISO"]
[null,475,"VEGALARGA"]
[null,657,"VELEZ"]
[null,721,"VENADILLO"]
[null,56,"VENECIA"]
[null,817,"VENECIA"]
[null,261,"VENTAQUEMADA"]
[null,403,"VERGARA"]
[null,747,"VERSALLES"]
[null,658,"VETAS"]
[null,480,"VIANI"]
[null,792,"VICTORIA"]
[null,262,"VILLA DE LEIVA"]
[null,722,"VILLA HERMOSA"]
[null,576,"VILLACARO"]
[null,760,"VILLAGARZON"]
[null,820,"VILLAMARIA"]
[null,519,"VILLANUEVA"]
[null,440,"VILLANUEVA"]
[null,88,"VILLAPINZON"]
[null,723,"VILLARRICA"]
[null,15,"VILLAVICENCIO"]
[null,476,"VILLAVIEJA"]
[null,92,"VILLETA"]
[null,95,"VIOTA"]
[null,507,"VISTAHERMOSA"]
[null,286,"VITERBO"]
[null,94,"YACOPI"]
[null,550,"YACUANQUER"]
[null,477,"YAGUARA"]
[null,189,"YALI"]
[null,147,"YARUMAL"]
[null,190,"YOLOMBO"]
[null,786,"YONDO"]
[null,50,"YOPAL"]
[null,814,"YOTOCO"]
[null,748,"YUMBO"]
[null,215,"ZAMBRANO"]
[null,659,"ZAPATOCA"]
[null,191,"ZARAGOZA"]
[null,749,"ZARZAL"]
[null,263,"ZETAQUIRA"]
[null,89,"ZIPAQUIRA"]
[null,"999","Oficina Radicadora / Autorizada"]